fUST/lending_fUST_20250810
["ID","MTS","AMOUNT","RATE_DAILY","PERIOD"]
[378172562,1754762079462,5000.0,0.00021512,2]
[378172563,1754762087882,666.0,0.00020542,2]
[378172564,1754762089905,612.94921649,0.00021442,2]
[378172565,1754762095398,2237.79668451,0.00021512,2]
[378172566,1754762095420,2762.20331549,0.00021512,2]
[378172567,1754762103240,5000.0,0.00021512,2]
[378172568,1754762106042,502.440993,0.00020542,2]
[378172569,1754762111368,5000.0,0.00021512,2]
[378172572,1754762126938,5000.0,0.00021512,2]
[378172573,1754762142759,1735.35569151,0.00021512,2]
[378172574,1754762142780,3264.64430849,0.00021512,2]
[378172575,1754762158862,5000.0,0.00021512,2]
[378172576,1754762175602,5000.0,0.00021512,2]
[378172577,1754762182869,2260.224627,0.00020542,2]
[378172578,1754762184381,605.87863079,0.00021331,6]
[378172579,1754762191709,3869.25243372,0.00021512,2]
[378172580,1754762191738,1130.74756628,0.00021512,2]
[378172581,1754762198096,460.0,0.00031649,30]
[378172582,1754762204473,216.05476533,0.0002144,2]
[378172584,1754762207463,5000.0,0.00021512,2]
[378172585,1754762213764,820.590526,0.00013699,2]
[378172586,1754762214018,820.590526,0.00020187,2]
[378172588,1754762223168,5000.0,0.00021512,2]
[378172589,1754762235236,457.32482035,0.0002144,2]
[378172590,1754762239399,5000.0,0.00021512,2]
[378172591,1754762241064,1554.69179604,0.000199,2]
[378172592,1754762241090,11779.50674198,0.000199,2]
[378172593,1754762257486,5000.0,0.00021512,2]
[378172594,1754762272642,3220.49325802,0.00021512,2]
[378172595,1754762272667,1779.50674198,0.00021512,2]
[378172596,1754762287898,5000.0,0.00021512,2]
[378172597,1754762303881,5000.0,0.00021512,2]
[378172598,1754762315202,679.12564769,0.0002144,2]
[378172599,1754762317794,7541.36761033,0.00020542,2]
[378172600,1754762317816,20000.0,0.00020542,2]
[378172601,1754762317844,65.04989867,0.00020542,2]
[378172602,1754762320023,5000.0,0.00021511,2]
[378172604,1754762335493,5000.0,0.00021528,2]
[378172605,1754762351211,2000.0,0.00021528,2]
[378172606,1754762358259,10598.71860012,0.00031619,30]
[378172607,1754762365237,151.0,0.000207,3]
[378172608,1754762365620,151.0,0.000193,2]
[378172609,1754762374875,150.0,0.00022757,30]
[378172610,1754762377916,821.16204987,0.00020894,2]
[378172611,1754762428262,14068.88531523,0.000199,2]
[378172612,1754762431407,5512.8106224,0.0002054,2]
[378172613,1754762435480,1000.0,0.0002054,2]
[378172618,1754762446792,150.0,0.00022792,30]
[378172619,1754762454524,165.13115906,0.0002143,2]
[378172620,1754762459495,165.13115904,0.00021435,2]
[378172621,1754762464469,165.13115904,0.0002144,2]
[378172622,1754762497595,362.6188564,0.0002054,2]
[378172623,1754762526541,277.56475007,0.00021428,2]
[378172624,1754762540373,461.56492889,0.00021527,2]
[378172625,1754762547444,719.18063952,0.00021439,2]
[378172626,1754762553133,193.59073541,0.00021428,2]
[378172627,1754762568608,2640.46762574,0.00021441,2]
[378172628,1754762572254,2275.3203943,0.00020703,2]
[378172629,1754762591476,4347.65090753,0.00021443,2]
[378172630,1754762612450,13599.92247136,0.000199,2]
[378172631,1754762662213,500.0,0.00021472,2]
[378172632,1754762662649,42924.9574573,0.00020538,2]
[378172633,1754762679170,492.69722992,0.00020881,2]
[378172634,1754762679550,171.984531,0.00020891,2]
[378172635,1754762680030,160.35634946,0.00020892,2]
[378172644,1754762729653,5000.0,0.00021511,2]
[378172645,1754762730877,150.0,0.00022773,30]
[378172647,1754762746004,5000.0,0.00021511,2]
[378172648,1754762764143,5000.0,0.00021511,2]
[378172649,1754762768154,24900.0,0.00020533,2]
[378172650,1754762772632,629.28305958,0.00021437,2]
[378172651,1754762774570,1545.8957225,0.00020697,2]
[378172653,1754762779594,2734.8024191,0.00021511,2]
[378172654,1754762790732,4274.0,0.00021511,2]
[378172655,1754762799231,13146.59172216,0.000199,2]
[378172656,1754762821861,10000.0,0.00020533,2]
[378172657,1754762851664,2898.43393836,0.00021441,2]
[378172658,1754762861650,5606.29831706,0.00019412,2]
[378172667,1754762909585,2112.3741006,0.00021439,2]
[378172668,1754762915780,151.0,0.0003013,120]
[378172673,1754762943693,150.0,0.0002298,30]
[378172679,1754762981482,162.68198577,0.00020882,2]
[378172680,1754762983621,12708.37199803,0.000199,2]
[378172681,1754763024427,150.0,0.00022645,30]
[378172682,1754763025002,150.0,0.00023723,30]
[378172683,1754763027889,550.62267715,0.00021428,2]
[378172749,1754763032383,-1200.0,0.00021526,2]
[378172751,1754763032392,-300.0,0.00021526,2]
[378172753,1754763032401,-1200.0,0.00021526,2]
[378172755,1754763032410,-4817.0,0.00021527,2]
[378172757,1754763032420,-460.0,0.00021527,2]
[378172758,1754763032429,-461.3491597,0.00021527,2]
[378172761,1754763032439,-460.0,0.00021527,2]
[378172763,1754763032448,-460.0,0.00021527,2]
[378172765,1754763032457,-290.36212641,0.00021527,2]
[378172871,1754763038085,-169.63787359,0.00021527,2]
[378172872,1754763038095,-50000.0,0.00021528,2]
[378172873,1754763038105,-1000.0,0.00021528,2]
[378172874,1754763038114,-1000.0,0.00021528,2]
[378172875,1754763038124,-1000.0,0.00021528,2]
[378172876,1754763038134,-1000.0,0.00021528,2]
[378172877,1754763038143,-1000.0,0.00021528,2]
[378172878,1754763038153,-1000.0,0.00021528,2]
[378172879,1754763038162,-1000.0,0.00021528,2]
[378172880,1754763038171,-1000.0,0.00021528,2]
[378172881,1754763038181,-1000.0,0.00021528,2]
[378172882,1754763038190,-1000.0,0.00021528,2]
[378172884,1754763038199,-1000.0,0.00021528,2]
[378172885,1754763038209,-1000.0,0.00021528,2]
[378172886,1754763038218,-1000.0,0.00021528,2]
[378172887,1754763038228,-1000.0,0.00021528,2]
[378172888,1754763038237,-1000.0,0.00021528,2]
[378172891,1754763038436,-1000.0,0.00021528,2]
[378172892,1754763038459,-1000.0,0.00021528,2]
[378172893,1754763038469,-609.45784843,0.00021528,2]
[378172894,1754763038479,-281.33073495,0.00021528,2]
[378172895,1754763038489,-151.23800125,0.00021528,2]
[378172896,1754763038498,-500.0,0.00021528,2]
[378172897,1754763038508,-202.64979497,0.00021528,2]
[378172898,1754763038517,-151.0,0.00021528,2]
[378172899,1754763038527,-1197.16,0.00021529,3]
[378172900,1754763038537,-614.56348954,0.0002153,3]
[378172901,1754763038546,-460.0,0.00021536,2]
[378172902,1754763038556,-460.0,0.00021536,2]
[378172903,1754763038565,-460.0,0.00021536,2]
[378172904,1754763038575,-590.28,0.00021536,2]
[378172905,1754763038585,-460.0,0.00021536,2]
[378172906,1754763038595,-460.0,0.00021536,2]
[378172907,1754763038604,-460.0,0.00021536,2]
[378172908,1754763038614,-460.0,0.00021537,2]
[378172909,1754763038623,-491.78,0.00021537,2]
[378172910,1754763038633,-464.239958,0.00021537,2]
[378172911,1754763038643,-460.0,0.00021537,2]
[378172912,1754763038653,-460.0,0.00021537,2]
[378172913,1754763038663,-1055.33,0.00021537,2]
[378172914,1754763038672,-460.0,0.00021537,2]
[378172915,1754763038682,-588.41,0.00021537,2]
[378172916,1754763038692,-222.08253314,0.00021537,2]
[378172917,1754763038701,-570.52342834,0.00021537,2]
[378172918,1754763038711,-500.0,0.00021537,2]
[378172919,1754763038720,-500.0,0.00021537,2]
[378172920,1754763038730,-500.0,0.00021537,2]
[378172921,1754763038739,-500.0,0.00021537,2]
[378172922,1754763038749,-500.0,0.00021537,2]
[378172923,1754763038758,-500.0,0.00021537,2]
[378172924,1754763038768,-500.0,0.00021537,2]
[378172925,1754763038777,-511.55106284,0.00021537,2]
[378172926,1754763038787,-500.0,0.00021537,2]
[378172927,1754763038797,-500.0,0.00021537,2]
[378172928,1754763038806,-500.0,0.00021537,2]
[378172929,1754763038816,-500.0,0.00021537,2]
[378172930,1754763038826,-545.25261727,0.00021537,2]
[378172931,1754763038835,-500.0,0.00021537,2]
[378172932,1754763038846,-500.0,0.00021537,2]
[378172933,1754763038856,-610.38380645,0.00021537,2]
[378172934,1754763038866,-500.0,0.00021537,2]
[378172935,1754763038875,-460.0,0.00021537,2]
[378172936,1754763038885,-461.68137446,0.00021537,2]
[378172937,1754763038895,-500.0,0.00021537,2]
[378172938,1754763038905,-500.0,0.00021537,2]
[378172939,1754763038915,-500.0,0.00021537,2]
[378172940,1754763038925,-500.0,0.00021537,2]
[378172941,1754763038934,-500.0,0.00021537,2]
[378172942,1754763038944,-500.0,0.00021537,2]
[378172943,1754763038953,-500.0,0.00021537,2]
[378172944,1754763038963,-500.0,0.00021537,2]
[378172945,1754763038972,-500.0,0.00021537,2]
[378172946,1754763038982,-160.386127,0.00021537,2]
[378172947,1754763038991,-500.0,0.00021537,2]
[378172948,1754763039002,-500.0,0.00021537,2]
[378172949,1754763039011,-500.0,0.00021537,2]
[378172950,1754763039020,-500.0,0.00021537,2]
[378172951,1754763039030,-460.0,0.00021537,2]
[378172952,1754763039039,-460.0,0.00021537,2]
[378172953,1754763039050,-460.0,0.00021537,2]
[378172954,1754763039061,-460.0,0.00021537,2]
[378172955,1754763039072,-460.0,0.00021537,2]
[378172956,1754763039082,-460.0,0.00021537,2]
[378172957,1754763039093,-460.0,0.00021537,2]
[378172958,1754763039103,-821.13,0.00021537,2]
[378172959,1754763039113,-460.0,0.00021538,2]
[378172960,1754763039123,-460.0,0.00021538,2]
[378172961,1754763039132,-1182.0,0.00021538,2]
[378172962,1754763039142,-460.0,0.00021538,2]
[378172963,1754763039151,-460.0,0.00021538,2]
[378172964,1754763039160,-460.0,0.00021538,2]
[378172965,1754763039170,-460.0,0.00021538,2]
[378172966,1754763039179,-881.07,0.00021538,2]
[378172967,1754763039188,-460.0,0.00021538,2]
[378172968,1754763039198,-460.0,0.00021538,2]
[378172969,1754763039207,-460.0,0.00021538,2]
[378172970,1754763039217,-460.0,0.00021538,2]
[378172971,1754763039226,-460.0,0.00021538,2]
[378172972,1754763039239,-465.37755516,0.00021539,2]
[378172973,1754763039256,-460.0,0.00021539,2]
[378172974,1754763039266,-465.01664378,0.00021539,2]
[378172975,1754763039275,-460.0,0.00021539,2]
[378172976,1754763039284,-460.0,0.00021539,2]
[378172977,1754763039299,-460.0,0.00021539,2]
[378172978,1754763039308,-460.0,0.00021539,2]
[378172979,1754763039317,-460.0,0.00021539,2]
[378172980,1754763039326,-460.0,0.00021539,2]
[378172981,1754763039336,-460.0,0.00021539,2]
[378172982,1754763039345,-460.0,0.00021539,2]
[378172983,1754763039355,-460.0,0.00021539,2]
[378172984,1754763039365,-460.0,0.00021539,2]
[378172985,1754763039374,-460.0,0.00021539,2]
[378172986,1754763039383,-460.0,0.00021539,2]
[378172987,1754763039392,-460.0,0.00021539,2]
[378172988,1754763039402,-460.0,0.00021539,2]
[378172989,1754763039415,-460.0,0.00021539,2]
[378172990,1754763039424,-460.0,0.00021539,2]
[378172991,1754763039434,-460.0,0.00021539,2]
[378172992,1754763039444,-460.0,0.00021539,2]
[378172993,1754763039454,-460.0,0.00021539,2]
[378172994,1754763039466,-460.0,0.00021539,2]
[378172995,1754763039475,-460.0,0.00021539,2]
[378172996,1754763039486,-460.0,0.00021539,2]
[378172997,1754763039495,-462.20036886,0.00021539,2]
[378172998,1754763039505,-461.09330328,0.00021539,2]
[378172999,1754763039514,-460.0,0.00021539,2]
[378173000,1754763039524,-460.0,0.00021539,2]
[378173001,1754763039535,-460.0,0.00021539,2]
[378173002,1754763039544,-460.0,0.00021539,2]
[378173003,1754763039554,-460.0,0.00021539,2]
[378173004,1754763039564,-460.0,0.00021539,2]
[378173006,1754763039574,-460.0,0.00021539,2]
[378173007,1754763039583,-460.0,0.00021539,2]
[378173008,1754763039593,-462.45812857,0.00021539,2]
[378173009,1754763039603,-460.0,0.00021539,2]
[378173010,1754763039612,-460.0,0.00021539,2]
[378173011,1754763039621,-460.0,0.00021539,2]
[378173012,1754763039631,-460.0,0.00021539,2]
[378173013,1754763039641,-460.0,0.00021539,2]
[378173014,1754763039651,-460.0,0.00021539,2]
[378173015,1754763039660,-460.0,0.00021539,2]
[378173016,1754763039670,-460.0,0.00021539,2]
[378173018,1754763039679,-460.0,0.00021539,2]
[378173019,1754763039689,-396.62771672,0.00021539,2]
[378173020,1754763039698,-460.0,0.00021539,2]
[378173021,1754763039712,-460.0,0.00021539,2]
[378173022,1754763039721,-460.0,0.00021539,2]
[378173023,1754763039731,-460.0,0.00021539,2]
[378173024,1754763039740,-460.0,0.00021539,2]
[378173025,1754763039750,-461.89831955,0.00021539,2]
[378173026,1754763039760,-460.0,0.00021539,2]
[378173027,1754763039769,-460.0,0.00021539,2]
[378173028,1754763039779,-460.0,0.00021539,2]
[378173029,1754763039788,-460.0,0.00021539,2]
[378173030,1754763039797,-460.0,0.00021539,2]
[378173031,1754763039806,-460.0,0.00021539,2]
[378173032,1754763039816,-460.00722502,0.00021539,2]
[378173033,1754763039825,-460.0,0.00021539,2]
[378173035,1754763039835,-460.0,0.00021539,2]
[378173037,1754763039845,-460.0,0.00021539,2]
[378173038,1754763039854,-460.0,0.00021539,2]
[378173039,1754763039864,-460.0,0.00021539,2]
[378173040,1754763039873,-460.0,0.00021539,2]
[378173042,1754763039883,-460.0,0.00021539,2]
[378173043,1754763039892,-460.0,0.00021539,2]
[378173044,1754763039901,-460.0,0.00021539,2]
[378173045,1754763039916,-500.0,0.00021539,2]
[378173046,1754763039929,-500.0,0.00021539,2]
[378173048,1754763039942,-500.0,0.00021539,2]
[378173050,1754763039956,-500.0,0.00021539,2]
[378173052,1754763039968,-460.0,0.00021539,2]
[378173054,1754763039978,-460.0,0.00021539,2]
[378173056,1754763039989,-460.0,0.00021539,2]
[378173057,1754763040003,-460.0,0.00021539,2]
[378173058,1754763040016,-460.0,0.00021539,2]
[378173059,1754763040027,-460.0,0.00021539,2]
[378173060,1754763040039,-460.0,0.00021539,2]
[378173061,1754763040052,-460.0,0.00021539,2]
[378173062,1754763040064,-460.0,0.00021539,2]
[378173063,1754763040077,-460.0,0.00021539,2]
[378173064,1754763040094,-460.0,0.00021539,2]
[378173065,1754763040107,-461.95825264,0.00021539,2]
[378173066,1754763040120,-460.0,0.00021539,2]
[378173067,1754763040132,-460.0,0.00021539,2]
[378173068,1754763040143,-460.0,0.00021539,2]
[378173069,1754763040155,-460.0,0.00021539,2]
[378173070,1754763040169,-460.0,0.00021539,2]
[378173071,1754763040181,-460.0,0.00021539,2]
[378173072,1754763040192,-460.0,0.00021539,2]
[378173074,1754763040203,-460.0,0.00021539,2]
[378173075,1754763040217,-460.0,0.00021539,2]
[378173076,1754763040229,-460.0,0.00021539,2]
[378173077,1754763040240,-460.0,0.00021539,2]
[378173078,1754763040251,-460.0,0.00021539,2]
[378173079,1754763040262,-460.0,0.00021539,2]
[378173080,1754763040272,-460.0,0.00021539,2]
[378173081,1754763040282,-460.0,0.00021539,2]
[378173082,1754763040298,-460.0,0.00021539,2]
[378173083,1754763040308,-460.0,0.00021539,2]
[378173084,1754763040321,-431.37016986,0.00021539,2]
[378173085,1754763040333,-460.0,0.00021539,2]
[378173086,1754763040347,-460.0,0.00021539,2]
[378173087,1754763040360,-460.0,0.00021539,2]
[378173088,1754763040371,-153.97286027,0.00021539,2]
[378173089,1754763040384,-460.0,0.00021539,2]
[378173090,1754763040397,-460.0,0.00021539,2]
[378173091,1754763040409,-460.0,0.00021539,2]
[378173092,1754763040422,-460.0,0.00021539,2]
[378173093,1754763040433,-460.0,0.00021539,2]
[378173094,1754763040443,-460.0,0.00021539,2]
[378173095,1754763040453,-460.0,0.00021539,2]
[378173096,1754763040463,-460.0,0.00021539,2]
[378173097,1754763040473,-460.0,0.00021539,2]
[378173098,1754763040484,-460.0,0.00021539,2]
[378173099,1754763040496,-460.0,0.00021539,2]
[378173100,1754763040509,-647.49188425,0.00021539,2]
[378173101,1754763040521,-460.0,0.00021539,2]
[378173102,1754763040533,-460.0,0.00021539,2]
[378173103,1754763040546,-500.0,0.00021539,2]
[378173104,1754763040556,-500.0,0.00021539,2]
[378173105,1754763040567,-500.0,0.00021539,2]
[378173106,1754763040578,-500.0,0.00021539,2]
[378173107,1754763040591,-460.0,0.00021539,2]
[378173108,1754763040602,-1640.42,0.00021539,2]
[378173109,1754763040612,-1640.42,0.00021539,2]
[378173110,1754763040623,-460.0,0.00021539,2]
[378173111,1754763040633,-1640.42,0.00021539,2]
[378173112,1754763040644,-1640.42,0.00021539,2]
[378173113,1754763040655,-500.0,0.00021539,2]
[378173114,1754763040667,-500.0,0.00021539,2]
[378173115,1754763040678,-500.0,0.00021539,2]
[378173116,1754763040689,-500.0,0.00021539,2]
[378173117,1754763040700,-460.0,0.00021539,2]
[378173118,1754763040712,-460.0,0.00021539,2]
[378173119,1754763040724,-460.0,0.00021539,2]
[378173120,1754763040736,-460.0,0.00021539,2]
[378173121,1754763040748,-464.15029399,0.00021539,2]
[378173122,1754763040759,-460.0,0.00021539,2]
[378173123,1754763040778,-460.0,0.00021539,2]
[378173124,1754763040790,-460.0,0.00021539,2]
[378173125,1754763040810,-460.0,0.00021539,2]
[378173126,1754763040833,-460.0,0.00021539,2]
[378173127,1754763040846,-460.0,0.00021539,2]
[378173128,1754763040869,-460.0,0.00021539,2]
[378173129,1754763040881,-460.0,0.00021539,2]
[378173130,1754763040892,-460.0,0.00021539,2]
[378173131,1754763040910,-460.0,0.00021539,2]
[378173132,1754763040924,-460.0,0.00021539,2]
[378173133,1754763040935,-460.0,0.00021539,2]
[378173134,1754763040946,-460.0,0.00021539,2]
[378173135,1754763040957,-460.0,0.00021539,2]
[378173136,1754763040968,-460.0,0.00021539,2]
[378173137,1754763040978,-460.0,0.00021539,2]
[378173138,1754763040992,-460.0,0.00021539,2]
[378173139,1754763041003,-460.0,0.00021539,2]
[378173140,1754763041014,-460.0,0.00021539,2]
[378173141,1754763041025,-460.0,0.00021539,2]
[378173142,1754763041037,-460.0,0.00021539,2]
[378173143,1754763041048,-229.6344132,0.00021539,2]
[378173144,1754763041060,-460.0,0.00021539,2]
[378173145,1754763041072,-462.66000694,0.00021539,2]
[378173146,1754763041090,-460.0,0.00021539,2]
[378173147,1754763041102,-460.0,0.00021539,2]
[378173148,1754763041114,-460.0,0.00021539,2]
[378173149,1754763041125,-460.0,0.00021539,2]
[378173150,1754763041150,-460.0,0.00021539,2]
[378173151,1754763041179,-460.0,0.00021539,2]
[378173152,1754763041191,-460.0,0.00021539,2]
[378173153,1754763041202,-460.0,0.00021539,2]
[378173154,1754763041213,-460.0,0.00021539,2]
[378173155,1754763041224,-460.0,0.00021539,2]
[378173156,1754763041235,-460.0,0.00021539,2]
[378173157,1754763041246,-463.08042122,0.00021539,2]
[378173158,1754763041256,-283.24678112,0.00021539,2]
[378173159,1754763041267,-460.0,0.00021539,2]
[378173160,1754763041278,-460.0,0.00021539,2]
[378173161,1754763041290,-460.0,0.00021539,2]
[378173162,1754763041303,-460.0,0.00021539,2]
[378173163,1754763041314,-202.14396922,0.00021539,2]
[378173164,1754763041324,-460.0,0.00021539,2]
[378173165,1754763041335,-460.0,0.00021539,2]
[378173166,1754763041346,-460.0,0.00021539,2]
[378173167,1754763041356,-460.0,0.00021539,2]
[378173168,1754763041367,-460.0,0.00021539,2]
[378173169,1754763041379,-460.0,0.00021539,2]
[378173170,1754763041390,-460.0,0.00021539,2]
[378173171,1754763041401,-460.0,0.00021539,2]
[378173172,1754763041412,-460.0,0.00021539,2]
[378173173,1754763041423,-460.0,0.00021539,2]
[378173174,1754763041434,-461.91849985,0.00021539,2]
[378173175,1754763041445,-460.0,0.00021539,2]
[378173176,1754763041456,-460.0,0.00021539,2]
[378173177,1754763041466,-460.0,0.00021539,2]
[378173178,1754763041478,-460.0,0.00021539,2]
[378173179,1754763041488,-460.0,0.00021539,2]
[378173180,1754763041499,-460.0,0.00021539,2]
[378173181,1754763041510,-460.0,0.00021539,2]
[378173182,1754763041521,-460.0,0.00021539,2]
[378173183,1754763041532,-460.0,0.00021539,2]
[378173184,1754763041543,-460.0,0.00021539,2]
[378173185,1754763041553,-460.0,0.00021539,2]
[378173186,1754763041564,-460.0,0.00021539,2]
[378173187,1754763041575,-599.73709783,0.00021539,2]
[378173188,1754763041586,-460.0,0.00021539,2]
[378173189,1754763041598,-460.0,0.00021539,2]
[378173190,1754763041609,-460.0,0.00021539,2]
[378173191,1754763041620,-460.0,0.00021539,2]
[378173192,1754763041631,-460.0,0.00021539,2]
[378173193,1754763041642,-460.0,0.00021539,2]
[378173194,1754763041652,-585.05,0.00021539,2]
[378173195,1754763041662,-512.00045535,0.00021539,2]
[378173196,1754763041848,-460.0,0.00021539,2]
[378173197,1754763041867,-460.0,0.00021539,2]
[378173198,1754763041877,-460.0,0.00021539,2]
[378173199,1754763041888,-460.0,0.00021539,2]
[378173200,1754763041897,-460.0,0.00021539,2]
[378173201,1754763041907,-460.0,0.00021539,2]
[378173202,1754763041916,-460.0,0.00021539,2]
[378173203,1754763041925,-460.0,0.00021539,2]
[378173204,1754763041934,-460.0,0.00021539,2]
[378173205,1754763041943,-460.0,0.00021539,2]
[378173206,1754763041953,-461.19915396,0.00021539,2]
[378173207,1754763041963,-460.0,0.00021539,2]
[378173208,1754763041972,-460.0,0.00021539,2]
[378173209,1754763041981,-460.0,0.00021539,2]
[378173210,1754763041990,-460.0,0.00021539,2]
[378173211,1754763041999,-460.0,0.00021539,2]
[378173212,1754763042010,-460.0,0.0002154,2]
[378173213,1754763042020,-460.0,0.0002154,2]
[378173214,1754763042029,-460.0,0.0002154,2]
[378173215,1754763042039,-460.0,0.0002154,2]
[378173216,1754763042049,-460.0,0.0002154,2]
[378173217,1754763042058,-460.0,0.0002154,2]
[378173218,1754763042067,-460.0,0.0002154,2]
[378173219,1754763042077,-460.0,0.0002154,2]
[378173220,1754763042086,-460.0,0.0002154,2]
[378173221,1754763042096,-460.0,0.0002154,2]
[378173222,1754763042105,-460.0,0.0002154,2]
[378173223,1754763042115,-460.0,0.0002154,2]
[378173224,1754763042124,-460.0,0.0002154,2]
[378173225,1754763042135,-460.0,0.0002154,2]
[378173226,1754763042145,-540.46115299,0.0002154,2]
[378173227,1754763042154,-460.0,0.0002154,2]
[378173228,1754763042163,-460.0,0.0002154,2]
[378173229,1754763042173,-460.0,0.0002154,2]
[378173230,1754763042182,-460.0,0.0002154,2]
[378173231,1754763042191,-460.0,0.0002154,2]
[378173232,1754763042201,-460.0,0.0002154,2]
[378173233,1754763042211,-565.82,0.0002154,2]
[378173234,1754763042221,-460.0,0.0002154,2]
[378173235,1754763042230,-460.0,0.0002154,2]
[378173236,1754763042240,-460.0,0.0002154,2]
[378173237,1754763042249,-460.0,0.0002154,2]
[378173238,1754763042258,-460.0,0.0002154,2]
[378173239,1754763042267,-460.0,0.0002154,2]
[378173240,1754763042277,-500.0,0.0002154,2]
[378173241,1754763042286,-500.0,0.0002154,2]
[378173242,1754763042300,-460.0,0.0002154,2]
[378173243,1754763042310,-460.0,0.0002154,2]
[378173244,1754763042319,-460.0,0.0002154,2]
[378173245,1754763042328,-460.0,0.0002154,2]
[378173246,1754763042338,-1005.5247561,0.0002154,2]
[378173247,1754763042347,-460.0,0.0002154,2]
[378173248,1754763042357,-460.0,0.0002154,2]
[378173249,1754763042367,-1186.24,0.0002154,2]
[378173250,1754763042376,-1186.24,0.0002154,2]
[378173251,1754763042386,-460.0,0.0002154,2]
[378173252,1754763042396,-921.51,0.0002154,2]
[378173253,1754763042406,-460.0,0.0002154,2]
[378173254,1754763042416,-460.0,0.0002154,2]
[378173255,1754763042425,-460.0,0.0002154,2]
[378173256,1754763042434,-460.0,0.0002154,2]
[378173257,1754763042443,-460.0,0.0002154,2]
[378173258,1754763042452,-2422.38,0.0002154,2]
[378173259,1754763042462,-460.0,0.0002154,2]
[378173260,1754763042471,-1640.42,0.0002154,2]
[378173261,1754763042480,-1640.42,0.0002154,2]
[378173262,1754763042489,-500.0,0.0002154,2]
[378173263,1754763042498,-500.0,0.0002154,2]
[378173264,1754763042508,-460.0,0.0002154,2]
[378173265,1754763042517,-745.73,0.0002154,2]
[378173266,1754763042527,-460.0,0.0002154,2]
[378173267,1754763042536,-688.25,0.0002154,2]
[378173268,1754763042545,-790.22,0.0002154,2]
[378173269,1754763042554,-460.0,0.0002154,2]
[378173270,1754763042563,-460.0,0.0002154,2]
[378173271,1754763042572,-460.0,0.0002154,2]
[378173272,1754763042582,-751.83,0.0002154,2]
[378173273,1754763042591,-460.0,0.0002154,2]
[378173274,1754763042601,-460.0,0.0002154,2]
[378173275,1754763042611,-460.0,0.0002154,2]
[378173276,1754763042620,-460.0,0.0002154,2]
[378173277,1754763042629,-460.0,0.0002154,2]
[378173278,1754763042639,-460.0,0.0002154,2]
[378173279,1754763042648,-529.69,0.0002154,2]
[378173280,1754763042657,-461.5611135,0.00021541,2]
[378173281,1754763042666,-460.0,0.00021541,2]
[378173282,1754763042676,-460.0,0.00021541,2]
[378173283,1754763042685,-460.0,0.00021541,2]
[378173284,1754763042695,-411.39908246,0.00021541,2]
[378173285,1754763042704,-460.0,0.00021541,2]
[378173286,1754763042713,-460.0,0.00021541,2]
[378173287,1754763042722,-460.0,0.00021541,2]
[378173288,1754763042732,-460.0,0.00021541,2]
[378173289,1754763042741,-460.0,0.00021541,2]